[Event "Late-Titled-Tuesday-Blitz-April-16-2024"]
[Site "Chess.com"]
[Date "2024.04.16"]
[Round "6"]
[White "CURRUTACO59"]
[Black "HanSchut"]
[Result "0-1"]
[WhiteElo "2153"]
[BlackElo "2322"]
[TimeControl "180+1"]
[EndTime "15:03:52 PDT"]
[Termination "HanSchut won on time"]

1. Nf3 {[%clk 0:02:57.7]} 1... Nf6 {[%clk 0:02:57.5]} 2. d3 {[%clk 0:02:58]}
2... g6 {[%clk 0:02:52.2]} 3. c4 {[%clk 0:02:56.7]} 3... Bg7 {[%clk 0:02:51.8]}
4. g3 {[%clk 0:02:56.9]} 4... O-O {[%clk 0:02:51.3]} 5. Nc3 {[%clk 0:02:57.1]}
5... d5 {[%clk 0:02:51.9]} 6. cxd5 {[%clk 0:02:55.2]} 6... Nxd5 {[%clk
0:02:52.8]} 7. Bg2 {[%clk 0:02:55.3]} 7... Nxc3 {[%clk 0:02:52.7]} 8. bxc3
{[%clk 0:02:54.5]} 8... Bxc3+ {[%clk 0:02:53.6]} 9. Bd2 {[%clk 0:02:55]} 9...
Bg7 {[%clk 0:02:50.9]} 10. O-O {[%clk 0:02:53]} 10... c5 {[%clk 0:02:50.5]} 11.
Rb1 {[%clk 0:02:52.6]} 11... Nc6 {[%clk 0:02:50.2]} 12. Qa4 {[%clk 0:02:47.9]}
12... Rb8 {[%clk 0:02:42.8]} 13. Rfc1 {[%clk 0:02:44.3]} 13... Qd6 {[%clk
0:02:33.9]} 14. Be3 {[%clk 0:02:15.3]} 14... b6 {[%clk 0:02:27.6]} 15. Nd2
{[%clk 0:01:55.1]} 15... Bd7 {[%clk 0:02:23.7]} 16. Qh4 {[%clk 0:01:40.1]} 16...
Nd4 {[%clk 0:02:13.5]} 17. Nc4 {[%clk 0:01:16.1]} 17... Qe6 {[%clk 0:02:08.4]}
18. Bxd4 {[%clk 0:01:01.5]} 18... Bxd4 {[%clk 0:02:04.3]} 19. Re1 {[%clk
0:00:44.5]} 19... Qf6 {[%clk 0:01:54.1]} 20. Qe4 {[%clk 0:00:40.9]} 20... Bxf2+
{[%clk 0:01:51.5]} 21. Kh1 {[%clk 0:00:40.1]} 21... Bxe1 {[%clk 0:01:51.1]} 22.
Rxe1 {[%clk 0:00:41]} 22... Rbc8 {[%clk 0:01:43.5]} 23. Ne5 {[%clk 0:00:40.7]}
23... Qe6 {[%clk 0:01:34.8]} 24. Rf1 {[%clk 0:00:35]} 24... f6 {[%clk
0:01:32.1]} 25. Nxd7 {[%clk 0:00:34.4]} 25... Qxd7 {[%clk 0:01:33]} 26. h4
{[%clk 0:00:32.2]} 26... e5 {[%clk 0:01:24]} 27. Kh2 {[%clk 0:00:31.2]} 27...
Kg7 {[%clk 0:01:23.7]} 28. Bh3 {[%clk 0:00:30.4]} 28... f5 {[%clk 0:01:20.9]}
29. Qxe5+ {[%clk 0:00:29.8]} 29... Kg8 {[%clk 0:01:21.1]} 30. Bg2 {[%clk
0:00:29.2]} 30... Rce8 {[%clk 0:01:12.4]} 31. Bd5+ {[%clk 0:00:27.8]} 31... Rf7
{[%clk 0:01:05.7]} 32. Bxf7+ {[%clk 0:00:26.5]} 32... Kxf7 {[%clk 0:01:05.9]}
33. Qb2 {[%clk 0:00:25.6]} 33... Qe6 {[%clk 0:01:01.7]} 34. Rf2 {[%clk
0:00:25.4]} 34... Qe3 {[%clk 0:01:00.9]} 35. Kg2 {[%clk 0:00:24]} 35... Qe5
{[%clk 0:00:56.7]} 36. Qb3+ {[%clk 0:00:23.8]} 36... Qe6 {[%clk 0:00:56]} 37.
Qa3 {[%clk 0:00:20.9]} 37... Qd7 {[%clk 0:00:51.6]} 38. Qb3+ {[%clk 0:00:20.2]}
38... Kg7 {[%clk 0:00:49.4]} 39. Qc3+ {[%clk 0:00:19.9]} 39... Qd4 {[%clk
0:00:44.7]} 40. Qa3 {[%clk 0:00:18.4]} 40... a5 {[%clk 0:00:42.9]} 41. h5 {[%clk
0:00:16.5]} 41... Qd5+ {[%clk 0:00:38.3]} 42. Kh2 {[%clk 0:00:13.1]} 42... g5
{[%clk 0:00:38.4]} 43. Qc3+ {[%clk 0:00:12.3]} 43... Qe5 {[%clk 0:00:36.9]} 44.
Qb3 {[%clk 0:00:11.6]} 44... Re6 {[%clk 0:00:36.3]} 45. Qb5 {[%clk 0:00:11.1]}
45... Kh6 {[%clk 0:00:34.5]} 46. Qd7 {[%clk 0:00:09.7]} 46... f4 {[%clk
0:00:19.2]} 47. gxf4 {[%clk 0:00:05.1]} 47... gxf4 {[%clk 0:00:20.1]} 48. Qf7
{[%clk 0:00:03.6]} 48... f3+ {[%clk 0:00:16.2]} 49. Kg1 {[%clk 0:00:02.3]} 49...
fxe2 {[%clk 0:00:16.6]} 0-1

[Event "Late-Titled-Tuesday-Blitz-April-16-2024"]
[Site "Chess.com"]
[Date "2024.04.16"]
[Round "6"]
[White "JaackCamel"]
[Black "Bkmzzzzz"]
[Result "0-1"]
[WhiteElo "2232"]
[BlackElo "2380"]
[TimeControl "180+1"]
[EndTime "15:03:56 PDT"]
[Termination "Bkmzzzzz won on time"]

1. d4 {[%clk 0:03:00.9]} 1... d5 {[%clk 0:02:58]} 2. c4 {[%clk 0:03:00.3]} 2...
dxc4 {[%clk 0:02:58.9]} 3. Nf3 {[%clk 0:02:59.6]} 3... a6 {[%clk 0:02:58.2]} 4.
e3 {[%clk 0:02:57.8]} 4... Nf6 {[%clk 0:02:58.7]} 5. Bxc4 {[%clk 0:02:56.6]}
5... e6 {[%clk 0:02:59.3]} 6. O-O {[%clk 0:02:54.9]} 6... c5 {[%clk 0:02:58.4]}
7. a4 {[%clk 0:02:47.8]} 7... Nc6 {[%clk 0:02:57.2]} 8. Nc3 {[%clk 0:02:44]}
8... Be7 {[%clk 0:02:56.7]} 9. Re1 {[%clk 0:02:39.3]} 9... O-O {[%clk
0:02:54.4]} 10. h3 {[%clk 0:02:38.1]} 10... b6 {[%clk 0:02:51.3]} 11. Qe2 {[%clk
0:02:33.7]} 11... cxd4 {[%clk 0:02:49.7]} 12. Rd1 {[%clk 0:02:33]} 12... Bb7
{[%clk 0:02:46.3]} 13. exd4 {[%clk 0:02:31]} 13... Nb4 {[%clk 0:02:45.1]} 14.
Bf4 {[%clk 0:02:19.2]} 14... Nfd5 {[%clk 0:02:35.4]} 15. Bg3 {[%clk 0:02:13.5]}
15... Rc8 {[%clk 0:02:27.5]} 16. Rac1 {[%clk 0:02:02]} 16... h6 {[%clk
0:01:59.7]} 17. Ne5 {[%clk 0:02:00.3]} 17... Bg5 {[%clk 0:01:55.1]} 18. Ra1
{[%clk 0:01:52.4]} 18... Bf6 {[%clk 0:01:26]} 19. Ne4 {[%clk 0:01:48.5]} 19...
Be7 {[%clk 0:01:17.6]} 20. Bb3 {[%clk 0:01:38.8]} 20... Nf6 {[%clk 0:01:08.6]}
21. Nc3 {[%clk 0:01:28.3]} 21... Nfd5 {[%clk 0:01:01.7]} 22. Ne4 {[%clk
0:01:26.5]} 22... Nf6 {[%clk 0:01:01.8]} 23. Nc3 {[%clk 0:01:26.1]} 23... Re8
{[%clk 0:00:59.8]} 24. Rac1 {[%clk 0:01:23.4]} 24... Nfd5 {[%clk 0:00:58.9]} 25.
Ne4 {[%clk 0:01:22.8]} 25... Rxc1 {[%clk 0:00:51.5]} 26. Rxc1 {[%clk 0:01:22.7]}
26... Nf6 {[%clk 0:00:49.7]} 27. Nxf6+ {[%clk 0:01:20.1]} 27... Bxf6 {[%clk
0:00:50.6]} 28. Rd1 {[%clk 0:01:19.9]} 28... Qe7 {[%clk 0:00:47.3]} 29. Qd2
{[%clk 0:01:11.4]} 29... Rd8 {[%clk 0:00:46.1]} 30. Bf4 {[%clk 0:01:03.9]} 30...
a5 {[%clk 0:00:39.9]} 31. Bc4 {[%clk 0:00:57.5]} 31... Nc6 {[%clk 0:00:32.5]}
32. Qd3 {[%clk 0:00:45.7]} 32... Rxd4 {[%clk 0:00:25]} 33. Nxc6 {[%clk
0:00:43.9]} 33... Bxc6 {[%clk 0:00:25]} 34. Qe2 {[%clk 0:00:12.9]} 34... Rxf4
{[%clk 0:00:24.6]} 35. b3 {[%clk 0:00:12.5]} 35... Rd4 {[%clk 0:00:24.6]} 36.
Rc1 {[%clk 0:00:12.4]} 36... e5 {[%clk 0:00:22.9]} 37. Bb5 {[%clk 0:00:12.2]}
37... Bxb5 {[%clk 0:00:22.4]} 38. Qxb5 {[%clk 0:00:12.1]} 38... Qd6 {[%clk
0:00:21.2]} 39. Qa6 {[%clk 0:00:11.3]} 39... Kh7 {[%clk 0:00:20.5]} 40. Re1
{[%clk 0:00:10.4]} 40... e4 {[%clk 0:00:19.6]} 41. Qb5 {[%clk 0:00:09.1]} 41...
Rd1 {[%clk 0:00:19.6]} 42. Qf5+ {[%clk 0:00:09.1]} 42... g6 {[%clk 0:00:18.8]}
43. Qxe4 {[%clk 0:00:09.4]} 43... Rxe1+ {[%clk 0:00:18.5]} 44. Qxe1 {[%clk
0:00:10]} 44... Qd5 {[%clk 0:00:18.5]} 45. Qe3 {[%clk 0:00:09.4]} 45... Bd4
{[%clk 0:00:18.3]} 46. Qf4 {[%clk 0:00:09]} 46... Bc5 {[%clk 0:00:18.3]} 47. Qg3
{[%clk 0:00:08.1]} 47... Qe4 {[%clk 0:00:17.3]} 48. Kh2 {[%clk 0:00:06.7]} 48...
Qc2 {[%clk 0:00:15.7]} 49. Qf3 {[%clk 0:00:06.2]} 49... Qf5 {[%clk 0:00:15.8]}
50. Qc3 {[%clk 0:00:04.5]} 50... Bxf2 {[%clk 0:00:15.5]} 51. Qc7 {[%clk
0:00:03.3]} 51... Be3 {[%clk 0:00:14.7]} 52. Kh1 {[%clk 0:00:03]} 52... Qf1+
{[%clk 0:00:14.2]} 53. Kh2 {[%clk 0:00:02.9]} 53... Bf4+ {[%clk 0:00:15.1]} 0-1

[Event "Late-Titled-Tuesday-Blitz-April-16-2024"]
[Site "Chess.com"]
[Date "2024.04.16"]
[Round "6"]
[White "Hrant_ChessMood"]
[Black "Guriempire"]
[Result "0-1"]
[WhiteElo "2969"]
[BlackElo "2827"]
[TimeControl "180+1"]
[EndTime "15:03:57 PDT"]
[Termination "Guriempire won on time"]

1. d4 {[%clk 0:03:00.9]} 1... Nf6 {[%clk 0:01:55.9]} 2. c4 {[%clk 0:02:58.4]}
2... e6 {[%clk 0:01:56.5]} 3. Bf4 {[%clk 0:02:58.2]} 3... b6 {[%clk 0:01:55.5]}
4. a3 {[%clk 0:02:56.2]} 4... Bb7 {[%clk 0:01:55.8]} 5. Nc3 {[%clk 0:02:56.6]}
5... Be7 {[%clk 0:01:55.7]} 6. Nf3 {[%clk 0:02:56]} 6... O-O {[%clk 0:01:55.3]}
7. h3 {[%clk 0:02:54.2]} 7... d6 {[%clk 0:01:53.4]} 8. e3 {[%clk 0:02:54.7]}
8... Nbd7 {[%clk 0:01:52.7]} 9. Be2 {[%clk 0:02:54.3]} 9... Ne4 {[%clk
0:01:49.6]} 10. Nxe4 {[%clk 0:02:49.5]} 10... Bxe4 {[%clk 0:01:50.2]} 11. O-O
{[%clk 0:02:50.4]} 11... f5 {[%clk 0:01:46.4]} 12. Bh2 {[%clk 0:02:47.5]} 12...
Bf6 {[%clk 0:01:36.1]} 13. Nd2 {[%clk 0:02:40.6]} 13... Bb7 {[%clk 0:01:34]} 14.
Bf3 {[%clk 0:02:39.7]} 14... Qc8 {[%clk 0:01:30.4]} 15. b4 {[%clk 0:02:39.3]}
15... a5 {[%clk 0:01:27.1]} 16. Qb3 {[%clk 0:02:38.4]} 16... Bxf3 {[%clk
0:01:22.7]} 17. Nxf3 {[%clk 0:02:38.1]} 17... Qe8 {[%clk 0:01:07.5]} 18. Rfc1
{[%clk 0:02:22.2]} 18... Kh8 {[%clk 0:01:04.4]} 19. Rab1 {[%clk 0:02:18.5]}
19... axb4 {[%clk 0:01:03.7]} 20. axb4 {[%clk 0:02:18.3]} 20... g5 {[%clk
0:01:02.5]} 21. c5 {[%clk 0:02:16.1]} 21... g4 {[%clk 0:01:00]} 22. hxg4 {[%clk
0:02:16.4]} 22... fxg4 {[%clk 0:01:00.6]} 23. Nd2 {[%clk 0:02:17]} 23... bxc5
{[%clk 0:01:00.2]} 24. dxc5 {[%clk 0:02:15.1]} 24... Bh4 {[%clk 0:00:53.2]} 25.
Ne4 {[%clk 0:01:59.5]} 25... d5 {[%clk 0:00:51]} 26. Bg3 {[%clk 0:01:55.8]}
26... Bd8 {[%clk 0:00:40.4]} 27. Nc3 {[%clk 0:01:49.3]} 27... h5 {[%clk
0:00:37.3]} 28. c6 {[%clk 0:01:41.7]} 28... Nb6 {[%clk 0:00:36.8]} 29. Nb5
{[%clk 0:01:41.1]} 29... Qf7 {[%clk 0:00:33.3]} 30. Qb2+ {[%clk 0:01:26.8]}
30... Kg8 {[%clk 0:00:32.6]} 31. Qe2 {[%clk 0:01:21.6]} 31... Qg7 {[%clk
0:00:29.3]} 32. Nd4 {[%clk 0:01:18.7]} 32... Qg6 {[%clk 0:00:27]} 33. Nb5 {[%clk
0:01:14.6]} 33... Qg7 {[%clk 0:00:24.5]} 34. Nd4 {[%clk 0:01:03.6]} 34... Re8
{[%clk 0:00:25]} 35. Bh2 {[%clk 0:00:49.1]} 35... h4 {[%clk 0:00:24.4]} 36. g3
{[%clk 0:00:30.3]} 36... h3 {[%clk 0:00:24.3]} 37. Rd1 {[%clk 0:00:31]} 37...
Bf6 {[%clk 0:00:24.7]} 38. Nb5 {[%clk 0:00:28.3]} 38... Nc4 {[%clk 0:00:23.8]}
39. Nxc7 {[%clk 0:00:20.6]} 39... Qxc7 {[%clk 0:00:21.6]} 40. Qxg4+ {[%clk
0:00:21.3]} 40... Qg7 {[%clk 0:00:21.7]} 41. Qxh3 {[%clk 0:00:19]} 41... Ne5
{[%clk 0:00:22.3]} 42. b5 {[%clk 0:00:14.6]} 42... Kf7 {[%clk 0:00:20.5]} 43.
Qh5+ {[%clk 0:00:13.9]} 43... Ke7 {[%clk 0:00:19.8]} 44. Qe2 {[%clk 0:00:08.8]}
44... Rh8 {[%clk 0:00:20.1]} 45. f4 {[%clk 0:00:08.3]} 45... Ng4 {[%clk
0:00:19.9]} 46. b6 {[%clk 0:00:07.6]} 46... Rxh2 {[%clk 0:00:19.3]} 47. Qf3
{[%clk 0:00:06]} 47... Rah8 {[%clk 0:00:18.3]} 48. b7 {[%clk 0:00:03.8]} 48...
Qh7 {[%clk 0:00:18.7]} 49. Kf1 {[%clk 0:00:03.1]} 49... Rh1+ {[%clk 0:00:18.2]}
50. Ke2 {[%clk 0:00:03.4]} 50... Qc2+ {[%clk 0:00:18.3]} 51. Rd2 {[%clk
0:00:03.3]} 51... R8h2+ {[%clk 0:00:18.9]} 0-1

[Event "Late-Titled-Tuesday-Blitz-April-16-2024"]
[Site "Chess.com"]
[Date "2024.04.16"]
[Round "6"]
[White "WindWhistler11"]
[Black "laskakid"]
[Result "1-0"]
[WhiteElo "2504"]
[BlackElo "2357"]
[TimeControl "180+1"]
[EndTime "15:03:59 PDT"]
[Termination "WindWhistler11 won by checkmate"]

1. Nf3 {[%clk 0:02:17.6]} 1... d6 {[%clk 0:02:59.5]} 2. g3 {[%clk 0:02:18.5]}
2... e5 {[%clk 0:02:58.1]} 3. d3 {[%clk 0:02:18.9]} 3... Nf6 {[%clk 0:02:57.6]}
4. Bg2 {[%clk 0:02:19.4]} 4... g6 {[%clk 0:02:57.7]} 5. Nbd2 {[%clk 0:02:19.8]}
5... Bg7 {[%clk 0:02:58]} 6. e4 {[%clk 0:02:20.5]} 6... O-O {[%clk 0:02:58.1]}
7. O-O {[%clk 0:02:21.4]} 7... c6 {[%clk 0:02:53.2]} 8. c3 {[%clk 0:02:21.6]}
8... Nbd7 {[%clk 0:02:52.8]} 9. b4 {[%clk 0:02:20.3]} 9... a5 {[%clk 0:02:47.6]}
10. a3 {[%clk 0:02:19.4]} 10... axb4 {[%clk 0:02:45.1]} 11. cxb4 {[%clk
0:02:20.3]} 11... b5 {[%clk 0:02:33.5]} 12. Nb3 {[%clk 0:02:16.5]} 12... Nb6
{[%clk 0:02:33.2]} 13. Na5 {[%clk 0:02:15.5]} 13... Bd7 {[%clk 0:02:28.9]} 14.
Be3 {[%clk 0:02:09.4]} 14... Na4 {[%clk 0:02:25.6]} 15. Rc1 {[%clk 0:02:05]}
15... c5 {[%clk 0:02:15.9]} 16. h3 {[%clk 0:01:55.9]} 16... Ra7 {[%clk
0:02:12.4]} 17. Nb3 {[%clk 0:01:50.6]} 17... Re8 {[%clk 0:01:59]} 18. bxc5
{[%clk 0:01:46.9]} 18... dxc5 {[%clk 0:01:59.1]} 19. Nxc5 {[%clk 0:01:46.1]}
19... Nxc5 {[%clk 0:01:47.3]} 20. Bxc5 {[%clk 0:01:44.9]} 20... Ra4 {[%clk
0:01:43.6]} 21. Bd6 {[%clk 0:01:37.2]} 21... Nh5 {[%clk 0:01:31.9]} 22. Bb4
{[%clk 0:01:23.1]} 22... Qb6 {[%clk 0:01:25.5]} 23. Kh2 {[%clk 0:01:22]} 23...
Raa8 {[%clk 0:01:17.5]} 24. Qb3 {[%clk 0:01:19.7]} 24... Be6 {[%clk 0:01:15.6]}
25. Qb2 {[%clk 0:01:15.2]} 25... Bd7 {[%clk 0:01:03.9]} 26. Bc5 {[%clk 0:00:54]}
26... Qf6 {[%clk 0:00:56.4]} 27. Nd2 {[%clk 0:00:50.1]} 27... Bh6 {[%clk
0:00:47.9]} 28. Rc2 {[%clk 0:00:43.1]} 28... Rac8 {[%clk 0:00:46.7]} 29. Nb3
{[%clk 0:00:37.7]} 29... Ng7 {[%clk 0:00:34.6]} 30. d4 {[%clk 0:00:38.1]} 30...
exd4 {[%clk 0:00:28]} 31. Bxd4 {[%clk 0:00:39]} 31... Qe6 {[%clk 0:00:26.9]} 32.
Nc5 {[%clk 0:00:37.5]} 32... Qe7 {[%clk 0:00:24.5]} 33. Nd3 {[%clk 0:00:33.2]}
33... Be6 {[%clk 0:00:22.7]} 34. Rc5 {[%clk 0:00:31.6]} 34... Rcd8 {[%clk
0:00:21.2]} 35. Ne5 {[%clk 0:00:29.7]} 35... Nh5 {[%clk 0:00:19.5]} 36. Nc6
{[%clk 0:00:28.2]} 36... Qd7 {[%clk 0:00:17.2]} 37. Nxd8 {[%clk 0:00:25.8]}
37... Rxd8 {[%clk 0:00:17.4]} 38. Bc3 {[%clk 0:00:25.8]} 38... Bc4 {[%clk
0:00:13.4]} 39. Re1 {[%clk 0:00:23.4]} 39... Qd6 {[%clk 0:00:12.6]} 40. Bb4
{[%clk 0:00:17.3]} 40... Qb8 {[%clk 0:00:08.1]} 41. e5 {[%clk 0:00:10.6]} 41...
Bf8 {[%clk 0:00:07.7]} 42. Rc6 {[%clk 0:00:06.3]} 42... Bg7 {[%clk 0:00:08]} 43.
f4 {[%clk 0:00:05.8]} 43... g5 {[%clk 0:00:07.9]} 44. Qc1 {[%clk 0:00:04.6]}
44... gxf4 {[%clk 0:00:07.7]} 45. gxf4 {[%clk 0:00:05.5]} 45... Bh6 {[%clk
0:00:08]} 46. Re4 {[%clk 0:00:06.2]} 46... Bd5 {[%clk 0:00:07.5]} 47. Rxh6
{[%clk 0:00:06.2]} 47... Bxe4 {[%clk 0:00:07.3]} 48. Rxh5 {[%clk 0:00:06.7]}
48... Bxg2 {[%clk 0:00:06.4]} 49. Rg5+ {[%clk 0:00:07.3]} 49... Kh8 {[%clk
0:00:05.4]} 50. Be7 {[%clk 0:00:07.9]} 50... Rg8 {[%clk 0:00:03.7]} 51. Bf6+
{[%clk 0:00:08.2]} 51... Rg7 {[%clk 0:00:03.5]} 52. Rxg7 {[%clk 0:00:09]} 52...
h6 {[%clk 0:00:01.4]} 53. Rxg2+ {[%clk 0:00:09.4]} 53... Kh7 {[%clk 0:00:01.4]}
54. Qc2# {[%clk 0:00:10.1]} 1-0

[Event "Late-Titled-Tuesday-Blitz-April-16-2024"]
[Site "Chess.com"]
[Date "2024.04.16"]
[Round "6"]
[White "PotapovaM"]
[Black "LuisFSiles"]
[Result "1/2-1/2"]
[WhiteElo "2535"]
[BlackElo "2399"]
[TimeControl "180+1"]
[EndTime "15:04:06 PDT"]
[Termination "Game drawn by repetition"]

1. e4 {[%clk 0:02:59.5]} 1... c5 {[%clk 0:02:59.7]} 2. Nf3 {[%clk 0:02:57.4]}
2... Nc6 {[%clk 0:02:59.8]} 3. Bb5 {[%clk 0:02:55.3]} 3... g6 {[%clk 0:03:00.2]}
4. Bxc6 {[%clk 0:02:55.1]} 4... dxc6 {[%clk 0:03:01.1]} 5. d3 {[%clk 0:02:53.9]}
5... Bg7 {[%clk 0:03:01.3]} 6. h3 {[%clk 0:02:53.7]} 6... Nf6 {[%clk 0:03:01]}
7. Nc3 {[%clk 0:02:54.1]} 7... Nd7 {[%clk 0:03:00.2]} 8. Be3 {[%clk 0:02:53.9]}
8... b6 {[%clk 0:03:00.2]} 9. Qd2 {[%clk 0:02:51.9]} 9... h6 {[%clk 0:03:00.3]}
10. O-O {[%clk 0:02:46.1]} 10... e5 {[%clk 0:02:59.6]} 11. Nh2 {[%clk
0:02:45.5]} 11... Nf8 {[%clk 0:02:58.8]} 12. f4 {[%clk 0:02:45.4]} 12... exf4
{[%clk 0:02:59.7]} 13. Rxf4 {[%clk 0:02:44.3]} 13... Be6 {[%clk 0:02:59.2]} 14.
Rf2 {[%clk 0:02:25.9]} 14... g5 {[%clk 0:02:53.7]} 15. Nf1 {[%clk 0:02:22.3]}
15... Ng6 {[%clk 0:02:48.8]} 16. Ng3 {[%clk 0:02:19.2]} 16... Bd4 {[%clk
0:02:32.6]} 17. Raf1 {[%clk 0:02:09.2]} 17... Qd6 {[%clk 0:02:24.8]} 18. Nf5
{[%clk 0:01:56]} 18... Bxf5 {[%clk 0:02:12.2]} 19. Rxf5 {[%clk 0:01:56.9]} 19...
Nf4 {[%clk 0:02:10.5]} 20. Ne2 {[%clk 0:01:41.3]} 20... Nxe2+ {[%clk 0:01:43.3]}
21. Qxe2 {[%clk 0:01:42.2]} 21... Bxe3+ {[%clk 0:01:43.6]} 22. Qxe3 {[%clk
0:01:41.9]} 22... O-O {[%clk 0:01:44]} 23. Rf6 {[%clk 0:01:31.6]} 23... Qd4
{[%clk 0:01:27.4]} 24. Qxd4 {[%clk 0:01:31.5]} 24... cxd4 {[%clk 0:01:27.4]} 25.
Rxh6 {[%clk 0:01:32.3]} 25... c5 {[%clk 0:01:19.1]} 26. Rhf6 {[%clk 0:01:21.7]}
26... Kg7 {[%clk 0:01:11.4]} 27. R1f5 {[%clk 0:01:20.7]} 27... Rae8 {[%clk
0:01:11.8]} 28. Rd6 {[%clk 0:01:03.9]} 28... f6 {[%clk 0:01:08.1]} 29. Kf2
{[%clk 0:01:01.2]} 29... Re5 {[%clk 0:00:58]} 30. Rd7+ {[%clk 0:00:57.6]} 30...
Kg6 {[%clk 0:00:57.2]} 31. g4 {[%clk 0:00:51.3]} 31... Rf7 {[%clk 0:00:45.7]}
32. Rd6 {[%clk 0:00:21.8]} 32... Re8 {[%clk 0:00:22]} 33. Kg3 {[%clk 0:00:19.3]}
33... Rh8 {[%clk 0:00:21.5]} 34. e5 {[%clk 0:00:19.2]} 34... Rhf8 {[%clk
0:00:17.7]} 35. a4 {[%clk 0:00:12.3]} 35... Kh6 {[%clk 0:00:14.4]} 36. Rfxf6+
{[%clk 0:00:11.1]} 36... Rxf6 {[%clk 0:00:14.2]} 37. Rxf6+ {[%clk 0:00:08.2]}
37... Rxf6 {[%clk 0:00:14.2]} 38. exf6 {[%clk 0:00:09.1]} 38... Kg6 {[%clk
0:00:14.7]} 39. Kf3 {[%clk 0:00:09.8]} 39... Kxf6 {[%clk 0:00:14.5]} 40. Ke4
{[%clk 0:00:10.5]} 40... Ke6 {[%clk 0:00:14.9]} 41. c3 {[%clk 0:00:10.4]} 41...
dxc3 {[%clk 0:00:10.5]} 42. bxc3 {[%clk 0:00:11.3]} 42... a6 {[%clk 0:00:10.2]}
43. d4 {[%clk 0:00:09.6]} 43... c4 {[%clk 0:00:06.4]} 44. d5+ {[%clk 0:00:04.1]}
44... Kd6 {[%clk 0:00:06.8]} 45. Kd4 {[%clk 0:00:04.4]} 45... b5 {[%clk
0:00:07.4]} 46. a5 {[%clk 0:00:04.7]} 46... Kd7 {[%clk 0:00:05.9]} 47. Kc5
{[%clk 0:00:04.9]} 47... Kc7 {[%clk 0:00:05.9]} 48. d6+ {[%clk 0:00:02.8]} 48...
Kd7 {[%clk 0:00:06.3]} 49. Kd5 {[%clk 0:00:03.5]} 49... Kd8 {[%clk 0:00:06.3]}
50. Kc5 {[%clk 0:00:03.7]} 50... Kd7 {[%clk 0:00:06.2]} 51. Kd5 {[%clk
0:00:03.9]} 51... Kd8 {[%clk 0:00:06.7]} 52. Kc5 {[%clk 0:00:02.4]} 52... Kd7
{[%clk 0:00:06.9]} 1/2-1/2

[Event "Late-Titled-Tuesday-Blitz-April-16-2024"]
[Site "Chess.com"]
[Date "2024.04.16"]
[Round "6"]
[White "MikaelyanArman"]
[Black "Szparu"]
[Result "0-1"]
[WhiteElo "2755"]
[BlackElo "2890"]
[TimeControl "180+1"]
[EndTime "15:04:07 PDT"]
[Termination "Szparu won by resignation"]

1. d4 {[%clk 0:03:00.9]} 1... Nf6 {[%clk 0:02:59.7]} 2. Nf3 {[%clk 0:03:00.7]}
2... e6 {[%clk 0:02:59.7]} 3. g3 {[%clk 0:03:00.9]} 3... c5 {[%clk 0:02:59.6]}
4. c4 {[%clk 0:02:58.8]} 4... cxd4 {[%clk 0:02:58]} 5. Nxd4 {[%clk 0:02:59.7]}
5... d5 {[%clk 0:02:57.8]} 6. Bg2 {[%clk 0:02:59.9]} 6... e5 {[%clk 0:02:58]} 7.
Nf3 {[%clk 0:03:00.2]} 7... d4 {[%clk 0:02:58.3]} 8. O-O {[%clk 0:03:00.2]} 8...
Nc6 {[%clk 0:02:58.8]} 9. e3 {[%clk 0:03:00.9]} 9... Be7 {[%clk 0:02:58.7]} 10.
exd4 {[%clk 0:03:01]} 10... exd4 {[%clk 0:02:58.8]} 11. Bf4 {[%clk 0:03:01.4]}
11... O-O {[%clk 0:02:58]} 12. Ne5 {[%clk 0:02:59.2]} 12... Qb6 {[%clk
0:02:47.2]} 13. Qb3 {[%clk 0:02:57.4]} 13... Nb4 {[%clk 0:02:36.2]} 14. a3
{[%clk 0:02:44.1]} 14... Na6 {[%clk 0:02:36.2]} 15. Nd2 {[%clk 0:02:31.1]} 15...
Nh5 {[%clk 0:02:23]} 16. Nd3 {[%clk 0:02:19.4]} 16... Bf5 {[%clk 0:02:04.1]} 17.
Qxb6 {[%clk 0:02:00.4]} 17... axb6 {[%clk 0:02:05]} 18. Be4 {[%clk 0:01:46.7]}
18... Bxe4 {[%clk 0:01:54.5]} 19. Nxe4 {[%clk 0:01:47.6]} 19... Rac8 {[%clk
0:01:44.5]} 20. Bd6 {[%clk 0:01:36.9]} 20... Rfe8 {[%clk 0:01:25.6]} 21. Rfe1
{[%clk 0:01:27.8]} 21... f5 {[%clk 0:00:43.8]} 22. Bxe7 {[%clk 0:01:26.7]} 22...
fxe4 {[%clk 0:00:43.5]} 23. Rxe4 {[%clk 0:01:27.6]} 23... Nf6 {[%clk 0:00:38.4]}
24. Ree1 {[%clk 0:01:14.2]} 24... Rxc4 {[%clk 0:00:36.7]} 25. Bd6 {[%clk
0:00:46.3]} 25... Rxe1+ {[%clk 0:00:37.6]} 26. Rxe1 {[%clk 0:00:46.7]} 26... Nc5
{[%clk 0:00:33.8]} 27. Bxc5 {[%clk 0:00:26.7]} 27... bxc5 {[%clk 0:00:34.7]} 28.
Re2 {[%clk 0:00:27.4]} 28... b6 {[%clk 0:00:30.4]} 29. Kf1 {[%clk 0:00:24.1]}
29... Nd5 {[%clk 0:00:19.1]} 30. Re8+ {[%clk 0:00:17.4]} 30... Kf7 {[%clk
0:00:19]} 31. Rd8 {[%clk 0:00:17.4]} 31... Ke6 {[%clk 0:00:16.6]} 32. Re8+
{[%clk 0:00:17.3]} 32... Ne7 {[%clk 0:00:11.5]} 33. Rb8 {[%clk 0:00:13.7]} 33...
Rc2 {[%clk 0:00:10.3]} 34. Rxb6+ {[%clk 0:00:13.2]} 34... Kd5 {[%clk 0:00:10.4]}
35. b3 {[%clk 0:00:13.2]} 35... Ke4 {[%clk 0:00:08.4]} 36. Nf4 {[%clk
0:00:12.6]} 36... Kf3 {[%clk 0:00:06.5]} 37. Re6 {[%clk 0:00:08.4]} 37... Rxf2+
{[%clk 0:00:06.7]} 38. Kg1 {[%clk 0:00:09]} 38... Nf5 {[%clk 0:00:05.7]} 39. Nd3
{[%clk 0:00:03.6]} 39... Rg2+ {[%clk 0:00:05.2]} 40. Kh1 {[%clk 0:00:04.2]}
40... Ra2 {[%clk 0:00:05]} 41. Re1 {[%clk 0:00:03.7]} 41... Ne3 {[%clk
0:00:04.7]} 42. Nxc5 {[%clk 0:00:04.3]} 42... Rxa3 {[%clk 0:00:03.9]} 43. b4
{[%clk 0:00:04.9]} 43... Ra2 {[%clk 0:00:04.1]} 44. b5 {[%clk 0:00:05.2]} 44...
Rb2 {[%clk 0:00:04.6]} 45. Ne6 {[%clk 0:00:04.6]} 45... d3 {[%clk 0:00:03.9]}
46. Nd4+ {[%clk 0:00:04.2]} 46... Kf2 {[%clk 0:00:03.4]} 47. Ra1 {[%clk
0:00:04.1]} 47... d2 {[%clk 0:00:03.5]} 48. b6 {[%clk 0:00:04.3]} 48... d1=Q+
{[%clk 0:00:02.9]} 49. Rxd1 {[%clk 0:00:04.7]} 49... Nxd1 {[%clk 0:00:03.8]} 50.
Nf5 {[%clk 0:00:04.4]} 50... Rxb6 {[%clk 0:00:03.5]} 51. h4 {[%clk 0:00:04.8]}
51... Rb1 {[%clk 0:00:04.1]} 52. Kh2 {[%clk 0:00:05.2]} 52... Ne3 {[%clk
0:00:04.9]} 53. Nxg7 {[%clk 0:00:05.7]} 53... Rb2 {[%clk 0:00:04.4]} 54. Kh3
{[%clk 0:00:06]} 54... Rb1 {[%clk 0:00:04.3]} 55. Kh2 {[%clk 0:00:04.9]} 55...
Ng4+ {[%clk 0:00:04.3]} 56. Kh3 {[%clk 0:00:05.5]} 56... Kf3 {[%clk 0:00:04.8]}
0-1